[Event "GrandPrix_29.05"]
[Site "Chess.com"]
[Date "2020.05.29"]
[Round "2"]
[White "Korona_91"]
[Black "Belka1989"]
[Result "0-1"]
[WhiteElo "2051"]
[BlackElo "2397"]
[TimeControl "600+2"]
[EndTime "9:57:16 PDT"]
[Termination "Belka1989 won by resignation"]

1. e4 {[%clk 0:10:01.9]} 1... c5 {[%clk 0:09:59]} 2. Nf3 {[%clk 0:10:01.4]} 2...
d6 {[%clk 0:09:59.6]} 3. Bb5+ {[%clk 0:09:59.9]} 3... Bd7 {[%clk 0:09:59.5]} 4.
c4 {[%clk 0:09:57.9]} 4... Nc6 {[%clk 0:09:53.2]} 5. Nc3 {[%clk 0:09:58.1]} 5...
Nf6 {[%clk 0:09:53.1]} 6. d4 {[%clk 0:09:57.4]} 6... cxd4 {[%clk 0:09:55]} 7.
Nxd4 {[%clk 0:09:58.4]} 7... e6 {[%clk 0:09:53.2]} 8. O-O {[%clk 0:09:58.2]}
8... Be7 {[%clk 0:09:48.7]} 9. Be3 {[%clk 0:09:40.9]} 9... O-O {[%clk
0:09:46.4]} 10. Rc1 {[%clk 0:09:31.8]} 10... a6 {[%clk 0:09:29.8]} 11. Bxc6
{[%clk 0:09:26.3]} 11... bxc6 {[%clk 0:09:18.6]} 12. c5 {[%clk 0:08:51.9]} 12...
d5 {[%clk 0:08:56.2]} 13. e5 {[%clk 0:08:44.8]} 13... Ne8 {[%clk 0:08:56.9]} 14.
Na4 {[%clk 0:08:37.6]} 14... Rb8 {[%clk 0:07:56.8]} 15. b3 {[%clk 0:08:28.7]}
15... Nc7 {[%clk 0:07:31.4]} 16. f4 {[%clk 0:08:17.9]} 16... Nb5 {[%clk
0:07:23.2]} 17. Qg4 {[%clk 0:07:18.4]} 17... Nxd4 {[%clk 0:06:52.6]} 18. Bxd4
{[%clk 0:07:18.6]} 18... f5 {[%clk 0:06:45.5]} 19. Qe2 {[%clk 0:06:59.7]} 19...
Bc8 {[%clk 0:05:35.7]} 20. Rc3 {[%clk 0:06:49.7]} 20... h6 {[%clk 0:05:10.9]}
21. Nb6 {[%clk 0:06:20.7]} 21... Kh7 {[%clk 0:05:03.5]} 22. b4 {[%clk 0:06:19]}
22... Rg8 {[%clk 0:04:55.1]} 23. a4 {[%clk 0:06:10.5]} 23... Qe8 {[%clk
0:04:40.6]} 24. Ra1 {[%clk 0:05:27.6]} 24... g5 {[%clk 0:04:21.3]} 25. fxg5
{[%clk 0:05:18.6]} 25... Rxg5 {[%clk 0:04:15.8]} 26. b5 {[%clk 0:04:51.2]} 26...
axb5 {[%clk 0:03:55.3]} 27. axb5 {[%clk 0:04:51.5]} 27... cxb5 {[%clk
0:03:57.2]} 28. c6 {[%clk 0:04:32.4]} 28... b4 {[%clk 0:03:50.3]} 29. Rcc1
{[%clk 0:04:18.3]} 29... Rg4 {[%clk 0:03:36.9]} 30. Qd3 {[%clk 0:03:45.5]} 30...
Bg5 {[%clk 0:02:32.9]} 31. Ra7+ {[%clk 0:03:01]} 31... Kg8 {[%clk 0:02:28.4]}
32. Rc2 {[%clk 0:02:48.1]} 32... b3 {[%clk 0:02:27.8]} 33. Qxb3 {[%clk
0:02:27.1]} 33... Rxd4 {[%clk 0:02:24.9]} 34. h4 {[%clk 0:02:14.3]} 34... Rd1+
{[%clk 0:01:51.2]} 35. Kh2 {[%clk 0:02:08.7]} 35... Qh5 {[%clk 0:01:36.6]} 36.
g3 {[%clk 0:01:45.8]} 36... f4 {[%clk 0:01:00.2]} 37. Rg2 {[%clk 0:01:20.2]}
37... f3 {[%clk 0:00:49.9]} 38. Qxd1 {[%clk 0:01:17.8]} 38... Rxb6 {[%clk
0:00:45.8]} 39. Ra3 {[%clk 0:01:01.6]} 39... Rxc6 {[%clk 0:00:41.2]} 40. Qxf3
{[%clk 0:01:02]} 40... Qxf3 {[%clk 0:00:41.8]} 41. Rxf3 {[%clk 0:01:03.5]} 41...
Be7 {[%clk 0:00:34.6]} 42. Ra2 {[%clk 0:01:04]} 42... Rc7 {[%clk 0:00:26.1]} 43.
Kh3 {[%clk 0:01:02.2]} 43... Kg7 {[%clk 0:00:08.9]} 44. g4 {[%clk 0:01:03.2]}
44... d4 {[%clk 0:00:07.5]} 45. Rd3 {[%clk 0:01:01.5]} 45... Rc3 {[%clk
0:00:08.4]} 46. Rd2 {[%clk 0:00:51.7]} 46... Rxd3+ {[%clk 0:00:08.8]} 47. Rxd3
{[%clk 0:00:53.3]} 47... Bc5 {[%clk 0:00:10.3]} 48. g5 {[%clk 0:00:54.8]} 48...
hxg5 {[%clk 0:00:10]} 49. hxg5 {[%clk 0:00:56.5]} 49... Ba6 {[%clk 0:00:11.3]}
50. Rd1 {[%clk 0:00:53.8]} 50... Be2 {[%clk 0:00:10]} 51. Rc1 {[%clk 0:00:52.5]}
51... d3 {[%clk 0:00:07.3]} 52. Rxc5 {[%clk 0:00:53.1]} 52... d2 {[%clk
0:00:08.4]} 53. Rc7+ {[%clk 0:00:53.3]} 53... Kg6 {[%clk 0:00:08.4]} 54. Rd7
{[%clk 0:00:54.9]} 54... d1=Q {[%clk 0:00:08]} 55. Rxd1 {[%clk 0:00:56.3]} 55...
Bxd1 {[%clk 0:00:09.9]} 0-1

[Event "GrandPrix_29.05"]
[Site "Chess.com"]
[Date "2020.05.29"]
[Round "2"]
[White "komandoras123"]
[Black "pheonixking2000"]
[Result "0-1"]
[WhiteElo "2350"]
[BlackElo "2402"]
[TimeControl "600+2"]
[EndTime "9:57:17 PDT"]
[Termination "pheonixking2000 won on time"]

1. c4 {[%clk 0:09:57.3]} 1... e6 {[%clk 0:09:57.2]} 2. Nc3 {[%clk 0:09:57.1]}
2... d5 {[%clk 0:09:57.8]} 3. d4 {[%clk 0:09:57.8]} 3... Nf6 {[%clk 0:09:56]} 4.
cxd5 {[%clk 0:09:57.7]} 4... exd5 {[%clk 0:09:57.1]} 5. Bg5 {[%clk 0:09:58.2]}
5... c6 {[%clk 0:09:58.6]} 6. e3 {[%clk 0:09:58.9]} 6... Bd6 {[%clk 0:09:56.8]}
7. Bd3 {[%clk 0:09:51.4]} 7... O-O {[%clk 0:09:53.8]} 8. Nge2 {[%clk 0:09:43]}
8... Re8 {[%clk 0:09:50.5]} 9. h3 {[%clk 0:09:43.3]} 9... Nbd7 {[%clk 0:09:35]}
10. Qc2 {[%clk 0:09:06.2]} 10... Nf8 {[%clk 0:09:33.2]} 11. O-O {[%clk
0:08:45.9]} 11... Ng6 {[%clk 0:09:32.8]} 12. Rab1 {[%clk 0:08:31.6]} 12... h6
{[%clk 0:09:11.3]} 13. Bxf6 {[%clk 0:07:59]} 13... Qxf6 {[%clk 0:09:13.2]} 14.
e4 {[%clk 0:07:54.3]} 14... Qg5 {[%clk 0:07:16.7]} 15. e5 {[%clk 0:07:18.7]}
15... Bxh3 {[%clk 0:06:30.8]} 16. Ng3 {[%clk 0:07:15.6]} 16... Nh4 {[%clk
0:06:30.1]} 17. gxh3 {[%clk 0:05:05.8]} 17... Nf3+ {[%clk 0:06:29.5]} 18. Kg2
{[%clk 0:05:01.5]} 18... Nxd4 {[%clk 0:06:30.8]} 19. Qd1 {[%clk 0:03:18.5]}
19... Bxe5 {[%clk 0:06:21.9]} 20. Qg4 {[%clk 0:03:05.9]} 20... Ne6 {[%clk
0:05:58.3]} 21. Nce2 {[%clk 0:02:51.4]} 21... Bxg3 {[%clk 0:05:25.8]} 22. Qxg5
{[%clk 0:01:33.4]} 22... hxg5 {[%clk 0:05:27.7]} 23. fxg3 {[%clk 0:01:34.4]}
23... Nc5 {[%clk 0:05:25.5]} 24. Nc1 {[%clk 0:01:35.4]} 24... g6 {[%clk
0:05:10.1]} 25. Bc2 {[%clk 0:01:06.1]} 25... f5 {[%clk 0:04:56.5]} 26. Nb3
{[%clk 0:01:03.3]} 26... Nxb3 {[%clk 0:04:03.2]} 27. Bxb3 {[%clk 0:01:02.6]}
27... Kg7 {[%clk 0:04:04.7]} 28. Rbe1 {[%clk 0:01:01.9]} 28... Kf6 {[%clk
0:04:05.9]} 29. Kf2 {[%clk 0:01:01.6]} 29... Rh8 {[%clk 0:03:50.1]} 30. Rh1
{[%clk 0:01:01.5]} 30... Rh7 {[%clk 0:03:51.2]} 31. h4 {[%clk 0:00:34.8]} 31...
Rah8 {[%clk 0:03:27.6]} 32. hxg5+ {[%clk 0:00:29]} 32... Kxg5 {[%clk 0:03:29.5]}
33. Rxh7 {[%clk 0:00:25.7]} 33... Rxh7 {[%clk 0:03:31.4]} 34. Kg2 {[%clk
0:00:27.1]} 34... Kf6 {[%clk 0:03:31.8]} 35. Re8 {[%clk 0:00:27.2]} 35... Re7
{[%clk 0:03:27.4]} 36. Rf8+ {[%clk 0:00:16.7]} 36... Kg5 {[%clk 0:03:02.9]} 37.
Kf2 {[%clk 0:00:15.5]} 37... Rh7 {[%clk 0:02:49.7]} 38. Kg2 {[%clk 0:00:16.4]}
38... Rd7 {[%clk 0:02:51.2]} 39. Kf3 {[%clk 0:00:16.8]} 39... c5 {[%clk
0:02:43.2]} 40. Ba4 {[%clk 0:00:15.1]} 40... Re7 {[%clk 0:02:36.8]} 41. Re8
{[%clk 0:00:08.3]} 41... Rxe8 {[%clk 0:02:17.3]} 42. Bxe8 {[%clk 0:00:10.2]}
42... Kf6 {[%clk 0:02:19]} 43. a4 {[%clk 0:00:06.4]} 43... g5 {[%clk 0:02:13.6]}
44. Bd7 {[%clk 0:00:05.9]} 44... Ke5 {[%clk 0:02:11.3]} 45. Bc8 {[%clk
0:00:06.7]} 45... b6 {[%clk 0:02:11.2]} 46. Ba6 {[%clk 0:00:04.2]} 46... d4
{[%clk 0:01:42.4]} 47. Bc4 {[%clk 0:00:04]} 47... g4+ {[%clk 0:01:42.5]} 48. Kf2
{[%clk 0:00:03.2]} 48... f4 {[%clk 0:01:44]} 49. gxf4+ {[%clk 0:00:03.6]} 49...
Kxf4 {[%clk 0:01:45.9]} 50. Bd5 {[%clk 0:00:05]} 50... d3 {[%clk 0:01:41.8]} 51.
Bg2 {[%clk 0:00:03.9]} 51... g3+ {[%clk 0:01:32.9]} 52. Ke1 {[%clk 0:00:03.6]}
52... c4 {[%clk 0:01:31.7]} 53. Kd2 {[%clk 0:00:04.2]} 53... a6 {[%clk
0:01:15.7]} 54. Bb7 {[%clk 0:00:04.7]} 54... b5 {[%clk 0:01:11.9]} 55. a5 {[%clk
0:00:05.8]} 55... b4 {[%clk 0:01:08]} 56. b3 {[%clk 0:00:05.3]} 56... Ke5 {[%clk
0:00:56]} 0-1

[Event "GrandPrix_29.05"]
[Site "Chess.com"]
[Date "2020.05.29"]
[Round "2"]
[White "Borsuk_Konstantin"]
[Black "gliglu"]
[Result "0-1"]
[WhiteElo "1783"]
[BlackElo "2452"]
[TimeControl "600+2"]
[EndTime "9:57:28 PDT"]
[Termination "gliglu won by resignation"]

1. d4 {[%clk 0:10:01.9]} 1... Nf6 {[%clk 0:09:59.5]} 2. c4 {[%clk 0:10:01.6]}
2... e6 {[%clk 0:09:59.4]} 3. Nc3 {[%clk 0:10:01.7]} 3... Bb4 {[%clk 0:09:59.6]}
4. Qc2 {[%clk 0:09:43.9]} 4... O-O {[%clk 0:09:58.8]} 5. a3 {[%clk 0:09:44.4]}
5... Bxc3+ {[%clk 0:09:58.8]} 6. Qxc3 {[%clk 0:09:46.3]} 6... d6 {[%clk
0:09:59.7]} 7. g3 {[%clk 0:09:28.5]} 7... e5 {[%clk 0:09:04.2]} 8. d5 {[%clk
0:08:27.1]} 8... a5 {[%clk 0:08:48.4]} 9. Bg2 {[%clk 0:07:59]} 9... Nbd7 {[%clk
0:08:48.1]} 10. Nf3 {[%clk 0:07:27.7]} 10... Nc5 {[%clk 0:08:47.8]} 11. O-O
{[%clk 0:07:09.7]} 11... a4 {[%clk 0:08:28.9]} 12. Nd2 {[%clk 0:06:44.1]} 12...
Bd7 {[%clk 0:08:17.7]} 13. b4 {[%clk 0:06:20.9]} 13... axb3 {[%clk 0:08:12.2]}
14. Nxb3 {[%clk 0:06:21.6]} 14... Na4 {[%clk 0:07:43.3]} 15. Qc2 {[%clk
0:06:01.1]} 15... b6 {[%clk 0:07:42]} 16. h3 {[%clk 0:05:24]} 16... Qe7 {[%clk
0:07:29.2]} 17. Bg5 {[%clk 0:05:02]} 17... h6 {[%clk 0:07:28.3]} 18. Bd2 {[%clk
0:05:01.3]} 18... e4 {[%clk 0:07:13]} 19. Be3 {[%clk 0:04:43.4]} 19... Rfe8
{[%clk 0:06:58.7]} 20. Bd4 {[%clk 0:04:39.6]} 20... Nc5 {[%clk 0:06:33]} 21.
Nxc5 {[%clk 0:04:29.3]} 21... bxc5 {[%clk 0:06:33.1]} 22. Bc3 {[%clk 0:03:51.9]}
22... Ra4 {[%clk 0:05:44.4]} 23. Bb2 {[%clk 0:03:40.8]} 23... Rea8 {[%clk
0:05:27.9]} 24. e3 {[%clk 0:02:48.1]} 24... Bf5 {[%clk 0:04:44.3]} 25. Kh2
{[%clk 0:02:35.4]} 25... Nd7 {[%clk 0:04:41]} 26. Qb3 {[%clk 0:01:43.6]} 26...
Nb6 {[%clk 0:04:22.3]} 27. Rfc1 {[%clk 0:01:41.1]} 27... Bc8 {[%clk 0:04:21.9]}
28. Qc3 {[%clk 0:01:29.3]} 28... f6 {[%clk 0:04:21.4]} 29. Bf1 {[%clk
0:01:26.2]} 29... Bd7 {[%clk 0:04:11.5]} 30. Qd2 {[%clk 0:01:07.9]} 30... c6
{[%clk 0:04:01.2]} 31. dxc6 {[%clk 0:01:04.7]} 31... Bxc6 {[%clk 0:04:01.3]} 32.
Rab1 {[%clk 0:00:57.2]} 32... R4a6 {[%clk 0:03:40.7]} 33. Rd1 {[%clk 0:00:56.1]}
33... Rd8 {[%clk 0:03:40.1]} 34. Rdc1 {[%clk 0:00:35.9]} 34... Nd7 {[%clk
0:03:32.7]} 35. Rd1 {[%clk 0:00:29.5]} 35... Ne5 {[%clk 0:03:32.9]} 36. Bxe5
{[%clk 0:00:28.7]} 36... Qxe5 {[%clk 0:03:33.7]} 37. Qc1 {[%clk 0:00:27.1]}
37... Rda8 {[%clk 0:03:21.2]} 38. Qd2 {[%clk 0:00:26.6]} 38... Ba4 {[%clk
0:03:12.1]} 39. Qd5+ {[%clk 0:00:22.9]} 39... Kf8 {[%clk 0:01:31.8]} 40. Qxe5
{[%clk 0:00:21]} 40... fxe5 {[%clk 0:01:30.2]} 41. Rd2 {[%clk 0:00:15.4]} 41...
Ke7 {[%clk 0:01:11.1]} 42. Rb7+ {[%clk 0:00:15.4]} 42... Bd7 {[%clk 0:01:10.8]}
43. Bg2 {[%clk 0:00:13.7]} 43... R8a7 {[%clk 0:01:09.1]} 44. Rxa7 {[%clk
0:00:09]} 44... Rxa7 {[%clk 0:01:09.4]} 45. Bxe4 {[%clk 0:00:10.3]} 45... Rxa3
{[%clk 0:01:10]} 46. Bd5 {[%clk 0:00:10.7]} 46... Be6 {[%clk 0:01:05.6]} 47.
Bxe6 {[%clk 0:00:06.7]} 47... Kxe6 {[%clk 0:01:06.3]} 48. Rc2 {[%clk 0:00:08.2]}
48... e4 {[%clk 0:01:05.4]} 49. Kg2 {[%clk 0:00:08]} 49... Ke5 {[%clk
0:01:04.2]} 50. Kf1 {[%clk 0:00:08.4]} 50... g5 {[%clk 0:01:01.2]} 51. Ke2
{[%clk 0:00:05.1]} 51... Ra1 {[%clk 0:01:01.8]} 52. Rb2 {[%clk 0:00:03.1]} 52...
Rc1 {[%clk 0:01:00.3]} 53. Kd2 {[%clk 0:00:03.8]} 53... Rxc4 {[%clk 0:01:00.5]}
54. Rb8 {[%clk 0:00:05.3]} 54... Ra4 {[%clk 0:00:54.6]} 55. Rh8 {[%clk
0:00:06.1]} 55... Ra2+ {[%clk 0:00:55.4]} 56. Ke1 {[%clk 0:00:07.1]} 56... c4
{[%clk 0:00:54.7]} 57. Rxh6 {[%clk 0:00:06.5]} 57... c3 {[%clk 0:00:55]} 58. Rh8
{[%clk 0:00:07.5]} 58... Ra1+ {[%clk 0:00:54.7]} 59. Ke2 {[%clk 0:00:07.2]}
59... c2 {[%clk 0:00:55.7]} 0-1

[Event "GrandPrix_29.05"]
[Site "Chess.com"]
[Date "2020.05.29"]
[Round "2"]
[White "mikolka1985"]
[Black "Sanan_Sjugirov"]
[Result "0-1"]
[WhiteElo "2357"]
[BlackElo "2876"]
[TimeControl "600+2"]
[EndTime "9:57:29 PDT"]
[Termination "Sanan_Sjugirov won by resignation"]

1. d4 {[%clk 0:10:01.9]} 1... Nf6 {[%clk 0:09:55.2]} 2. c4 {[%clk 0:10:01.8]}
2... e6 {[%clk 0:09:54.5]} 3. Nf3 {[%clk 0:09:49]} 3... d5 {[%clk 0:09:50.3]} 4.
Nc3 {[%clk 0:09:47.5]} 4... Nbd7 {[%clk 0:09:46.5]} 5. cxd5 {[%clk 0:09:44.7]}
5... exd5 {[%clk 0:09:45.3]} 6. Bg5 {[%clk 0:09:44.9]} 6... Bb4 {[%clk
0:09:34.2]} 7. e3 {[%clk 0:09:20.6]} 7... c5 {[%clk 0:09:31.7]} 8. Be2 {[%clk
0:09:15.8]} 8... Qa5 {[%clk 0:08:41.9]} 9. O-O {[%clk 0:09:14.2]} 9... Bxc3
{[%clk 0:07:45.5]} 10. bxc3 {[%clk 0:09:12.1]} 10... Ne4 {[%clk 0:06:32.3]} 11.
c4 {[%clk 0:09:10.7]} 11... dxc4 {[%clk 0:05:55.3]} 12. Bxc4 {[%clk 0:09:08.9]}
12... O-O {[%clk 0:05:47.7]} 13. Qc2 {[%clk 0:08:43.4]} 13... Re8 {[%clk
0:04:28.7]} 14. Bd3 {[%clk 0:07:48.6]} 14... Nxg5 {[%clk 0:04:12.4]} 15. Nxg5
{[%clk 0:07:47.6]} 15... h6 {[%clk 0:03:20.2]} 16. Nxf7 {[%clk 0:06:48.9]} 16...
Kxf7 {[%clk 0:03:22.1]} 17. Bg6+ {[%clk 0:06:49.3]} 17... Kf8 {[%clk 0:03:19.7]}
18. Bxe8 {[%clk 0:06:36.7]} 18... Kxe8 {[%clk 0:03:21.6]} 19. Qe4+ {[%clk
0:06:26.7]} 19... Kf8 {[%clk 0:03:11.2]} 20. Rfc1 {[%clk 0:06:09]} 20... cxd4
{[%clk 0:02:30.3]} 21. Qxd4 {[%clk 0:05:47.7]} 21... Qe5 {[%clk 0:02:23.8]} 22.
Qb4+ {[%clk 0:05:44.8]} 22... Qe7 {[%clk 0:02:20]} 23. Qf4+ {[%clk 0:05:43.5]}
23... Qf6 {[%clk 0:02:09.1]} 24. Qc7 {[%clk 0:05:41.2]} 24... Ne5 {[%clk
0:01:45.2]} 25. Rd1 {[%clk 0:05:40.2]} 25... Bg4 {[%clk 0:01:41.1]} 26. Rd4
{[%clk 0:05:36.6]} 26... Kg8 {[%clk 0:01:37.9]} 27. Qxb7 {[%clk 0:05:34.6]}
27... Rf8 {[%clk 0:01:36.4]} 28. Rf1 {[%clk 0:04:33.4]} 28... Bf3 {[%clk
0:00:17.8]} 29. Qb3+ {[%clk 0:02:51.9]} 29... Rf7 {[%clk 0:00:18.3]} 30. Rf4
{[%clk 0:02:40]} 30... Qg5 {[%clk 0:00:17.6]} 31. g3 {[%clk 0:02:40.4]} 31...
Bc6 {[%clk 0:00:09.5]} 32. Rxf7 {[%clk 0:02:20.5]} 32... Nxf7 {[%clk 0:00:11.4]}
33. Rc1 {[%clk 0:02:05.9]} 33... Qg6 {[%clk 0:00:11.8]} 34. Qc2 {[%clk
0:01:56.6]} 34... Be4 {[%clk 0:00:09.7]} 35. Qc8+ {[%clk 0:01:34.2]} 35... Kh7
{[%clk 0:00:10.8]} 36. Qe8 {[%clk 0:01:05.8]} 36... Qf5 {[%clk 0:00:11.5]} 37.
f4 {[%clk 0:00:39.2]} 37... Bd5 {[%clk 0:00:12.3]} 38. Qc8 {[%clk 0:00:22.6]}
38... Qg6 {[%clk 0:00:05.8]} 39. Qc5 {[%clk 0:00:17.7]} 39... Be4 {[%clk
0:00:05]} 40. Qd4 {[%clk 0:00:15.6]} 40... Qe6 {[%clk 0:00:05.4]} 41. Rc7 {[%clk
0:00:11.9]} 41... Bg6 {[%clk 0:00:06.2]} 42. Rc1 {[%clk 0:00:07.1]} 42... Qxa2
{[%clk 0:00:06.2]} 43. e4 {[%clk 0:00:07.3]} 43... Qa3 {[%clk 0:00:07.3]} 44. f5
{[%clk 0:00:06.8]} 44... Qxc1+ {[%clk 0:00:08.4]} 0-1

[Event "GrandPrix_29.05"]
[Site "Chess.com"]
[Date "2020.05.29"]
[Round "2"]
[White "Grebnev_A"]
[Black "AsadliVugar"]
[Result "0-1"]
[WhiteElo "2160"]
[BlackElo "2236"]
[TimeControl "600+2"]
[EndTime "9:57:32 PDT"]
[Termination "AsadliVugar won by checkmate"]

1. c4 {[%clk 0:10:01.9]} 1... g6 {[%clk 0:09:57]} 2. Nc3 {[%clk 0:10:02.2]} 2...
Bg7 {[%clk 0:09:58]} 3. g3 {[%clk 0:10:03.7]} 3... d6 {[%clk 0:09:35.5]} 4. Bg2
{[%clk 0:10:02.3]} 4... Nf6 {[%clk 0:09:36.7]} 5. Nf3 {[%clk 0:10:00.5]} 5...
O-O {[%clk 0:09:36.2]} 6. O-O {[%clk 0:10:02]} 6... Nc6 {[%clk 0:09:37.2]} 7. d3
{[%clk 0:10:03]} 7... Nh5 {[%clk 0:09:36.4]} 8. Rb1 {[%clk 0:10:01.6]} 8... f5
{[%clk 0:09:35.7]} 9. Bd2 {[%clk 0:10:02]} 9... a5 {[%clk 0:09:37.3]} 10. a3
{[%clk 0:10:03.2]} 10... f4 {[%clk 0:09:38.7]} 11. b4 {[%clk 0:09:45.7]} 11...
axb4 {[%clk 0:09:38.8]} 12. axb4 {[%clk 0:09:46.6]} 12... Bg4 {[%clk 0:09:40.5]}
13. b5 {[%clk 0:09:43]} 13... Nd4 {[%clk 0:09:41.2]} 14. Nd5 {[%clk 0:08:05.7]}
14... Bxf3 {[%clk 0:08:50.4]} 15. exf3 {[%clk 0:07:57.8]} 15... e5 {[%clk
0:08:34.7]} 16. Bc3 {[%clk 0:07:30.2]} 16... Ne6 {[%clk 0:07:41.7]} 17. Bh3
{[%clk 0:06:22.4]} 17... Ng5 {[%clk 0:07:34.9]} 18. Bg4 {[%clk 0:06:23.2]} 18...
Nf6 {[%clk 0:07:21.6]} 19. Nxf6+ {[%clk 0:06:22.6]} 19... Qxf6 {[%clk 0:07:20]}
20. h4 {[%clk 0:06:23.4]} 20... Ne6 {[%clk 0:07:10.6]} 21. Kg2 {[%clk
0:06:23.2]} 21... h5 {[%clk 0:06:57.9]} 22. Bh3 {[%clk 0:06:11.3]} 22... g5
{[%clk 0:06:46.8]} 23. Bxe6+ {[%clk 0:06:02.3]} 23... Qxe6 {[%clk 0:06:48.2]}
24. hxg5 {[%clk 0:06:04.2]} 24... Qg6 {[%clk 0:06:49.9]} 25. Rh1 {[%clk
0:05:55.2]} 25... Qxg5 {[%clk 0:06:50.7]} 26. Ra1 {[%clk 0:03:59.4]} 26... Rxa1
{[%clk 0:05:04.1]} 27. Bxa1 {[%clk 0:03:58.4]} 27... Rf6 {[%clk 0:04:26.8]} 28.
Qe1 {[%clk 0:03:19.6]} 28... Rg6 {[%clk 0:04:05.1]} 29. Rh3 {[%clk 0:03:13.8]}
29... c6 {[%clk 0:03:28.7]} 30. bxc6 {[%clk 0:02:50.9]} 30... bxc6 {[%clk
0:03:29.8]} 31. Qe4 {[%clk 0:02:50.6]} 31... c5 {[%clk 0:02:56]} 32. Bc3 {[%clk
0:02:36.2]} 32... Bf6 {[%clk 0:02:56.8]} 33. Qd5+ {[%clk 0:02:06.7]} 33... Kg7
{[%clk 0:02:46.7]} 34. Qxd6 {[%clk 0:01:44.8]} 34... Qf5 {[%clk 0:02:38]} 35.
Qd5 {[%clk 0:01:41.6]} 35... fxg3 {[%clk 0:02:24]} 36. fxg3 {[%clk 0:01:30.8]}
36... h4 {[%clk 0:02:21.2]} 37. Qe4 {[%clk 0:01:21.9]} 37... Qg5 {[%clk
0:02:22.1]} 38. Be1 {[%clk 0:01:01.4]} 38... Qc1 {[%clk 0:02:17.9]} 39. Bf2
{[%clk 0:00:43]} 39... Qd2 {[%clk 0:02:18]} 40. Qe3 {[%clk 0:00:27.2]} 40... Qc2
{[%clk 0:02:19.3]} 41. Qe4 {[%clk 0:00:24.8]} 41... Qd2 {[%clk 0:02:20.3]} 42.
g4 {[%clk 0:00:20.9]} 42... Qc2 {[%clk 0:02:18.1]} 43. Rh1 {[%clk 0:00:19.4]}
43... Rh6 {[%clk 0:02:16.8]} 44. Qb7+ {[%clk 0:00:19.4]} 44... Kg6 {[%clk
0:02:17.8]} 45. Qe4+ {[%clk 0:00:20.2]} 45... Kg7 {[%clk 0:02:19.2]} 46. Rh3
{[%clk 0:00:18.9]} 46... Rg6 {[%clk 0:02:20.2]} 47. Qb7+ {[%clk 0:00:15.5]}
47... Kh6 {[%clk 0:02:21]} 48. Rh1 {[%clk 0:00:14.2]} 48... Bg5 {[%clk 0:02:12]}
49. Qe4 {[%clk 0:00:14.1]} 49... Rf6 {[%clk 0:02:11.1]} 50. Rf1 {[%clk 0:00:10]}
50... Qd2 {[%clk 0:02:09.6]} 51. Qxe5 {[%clk 0:00:08.8]} 51... h3+ {[%clk
0:02:10.1]} 52. Kxh3 {[%clk 0:00:05.8]} 52... Qxd3 {[%clk 0:02:11.5]} 53. Kg2
{[%clk 0:00:04.4]} 53... Qxf3+ {[%clk 0:02:12.1]} 54. Kg1 {[%clk 0:00:06]} 54...
Qxg4+ {[%clk 0:02:12.9]} 55. Qg3 {[%clk 0:00:07.7]} 55... Qxc4 {[%clk
0:02:12.2]} 56. Re1 {[%clk 0:00:08.5]} 56... Rg6 {[%clk 0:02:05.4]} 57. Qh3+
{[%clk 0:00:08.5]} 57... Kg7 {[%clk 0:01:59]} 58. Bg3 {[%clk 0:00:04.5]} 58...
Bf4 {[%clk 0:01:45.8]} 59. Qd7+ {[%clk 0:00:04.1]} 59... Kh6 {[%clk 0:01:37.2]}
60. Qh3+ {[%clk 0:00:05.2]} 60... Kg7 {[%clk 0:01:38.3]} 61. Qd7+ {[%clk
0:00:06.4]} 61... Kf6 {[%clk 0:01:37.7]} 62. Qc6+ {[%clk 0:00:04.7]} 62... Kg5
{[%clk 0:01:32.3]} 63. Bh4+ {[%clk 0:00:04.2]} 63... Kh5+ {[%clk 0:01:32.1]} 64.
Qxg6+ {[%clk 0:00:05.3]} 64... Kxg6 {[%clk 0:01:33.5]} 65. Bf2 {[%clk
0:00:07.2]} 65... Qd5 {[%clk 0:01:27.2]} 66. Kf1 {[%clk 0:00:07.2]} 66... c4
{[%clk 0:01:28]} 67. Ke2 {[%clk 0:00:08.8]} 67... Qd3# {[%clk 0:01:28.4]} 0-1